Cogmind - Beta 10.1 @@@ ROGUE MODE // 2020.10.04 @ 02:13:01 Player: HOTSOUP Result: Destroyed by H-55 Commando with Gauss Rifle Performance ------------- Evolutions (3) 1500 Regions Visited (8) 1600 Robots Destroyed (24) 120 Value Destroyed (854) 854 Prototype IDs (4) 80 Alien Tech Used (0) 0 Bonus (300) 300 TOTAL SCORE: 4454 Bonus ------- Aligned with FarCom 300 Cogmind --------- Core Integrity 0/700 Matter 300/300 Energy 99/100 System Corruption 1% Temperature Cool (16) Movement Core (50) Location -7/Factory Parts ------- > --- POWER (1) -------- (None) > --- PROPULSION (2) --- (None) > --- UTILITY (8) ------ (None) > --- WEAPON (2) ------- (None) > --- INVENTORY (4) ---- Superbattery (2000) Precision Beam Rifle Flail Peak State ------------ > --- POWER ------------ Ion Engine > --- PROPULSION ------- Flight Unit Xenon Bombardment Thruster > --- UTILITY ---------- Superbattery Advanced Weight Redist. System Improved Targeting Computer ECM Suite Hacking Suite System Shield > --- WEAPON ----------- Flail Axe > --- INVENTORY -------- Light Ion Engine Flight Unit Axe [Rating: 33] Favorites ----------- Power Light Ion Engine Engine Light Ion Engine Propulsion Flight Unit Flight Unit Flight Unit Utility Improved Targeting Computer Device Advanced Weight Redist. System Storage Superbattery Processor Improved Targeting Computer Hackware Hacking Suite Protection Light Armor Plating Weapon Axe Energy Gun Precision Beam Rifle Ballistic Gun Light Assault Rifle Special Weapon Mining Laser Impact Weapon Heavy Hammer Slashing Weapon Axe Build | -11 -10 -10 -9 -9 -9 -8 -8 -7 ------- Run | Scr Mat Min Mat Min Exi Min Mat Fac Slots Evolved 6 | . . . 2 . . . 2 2 Power . | . . . . . . . . . Propulsion . | . . . . . . . . . Utility 6 | . . . 2 . . . 2 2 Weapon . | . . . . . . . . . Parts Attached 46 | 1 8 . 10 . 8 4 4 11 Power 5 | . 1 . 1 . 1 1 . 1 Engine 5 | . 1 . 1 . 1 1 . 1 Core . | . . . . . . . . . Reactor . | . . . . . . . . . Propulsion 8 | . 4 . . . 2 . . 2 Treads . | . . . . . . . . . Leg . | . . . . . . . . . Wheel . | . . . . . . . . . Hover . | . . . . . . . . . Flight 8 | . 4 . . . 2 . . 2 Utility 12 | . 1 . 2 . 2 2 4 1 Device 3 | . . . . . . . 2 1 Storage 3 | . . . . . 2 . 1 . Processor 3 | . . . 2 . . 1 . . Hackware 2 | . . . . . . 1 1 . Protection 1 | . 1 . . . . . . . Artifact . | . . . . . . . . . Weapon 21 | 1 2 . 7 . 3 1 . 7 Energy Gun 5 | . . . 2 . . . . 3 Energy Cannon . | . . . . . . . . . Ballistic Gun 6 | 1 2 . 2 . 1 . . . Ballistic Cannon . | . . . . . . . . . Launcher . | . . . . . . . . . Special Weapon 1 | . . . 1 . . . . . Impact Weapon 2 | . . . . . . 1 . 1 Slashing Weapon 7 | . . . 2 . 2 . . 3 Piercing Weapon . | . . . . . . . . . Special Melee Weapon . | . . . . . . . . . Unidentified Prototypes 4 | . . . . . 2 . . 2 Parts Lost 14 | . . . 2 . . . . 12 Power 1 | . . . . . . . . 1 Propulsion 5 | . . . 2 . . . . 3 Utility 5 | . . . . . . . . 5 Weapon 3 | . . . . . . . . 3 Highest Loss Streak 5 | . . . 2 . . . . 5 Average Slot Usage (%) 63 | . 46 71 68 44 62 78 99 53 Engine 4 | . 8 14 4 . 5 2 9 1 Flight 15 | . 18 28 18 . 20 22 18 5 Device 2 | . . . . . . . 14 5 Storage 3 | . . . . . 7 . 8 4 Processor 17 | . . . 22 22 22 32 18 7 Hackware 4 | . . . . . . . 12 14 Protection 1 | . 6 14 5 . . . . . Ballistic Gun 2 | . 14 14 5 . . . . . Impact Weapon 1 | . . . . . . 1 9 4 Slashing Weapon 8 | . . . 11 22 6 19 9 4 Naked Turns 1 | . . . . . . . . 1 Heaviest Build 16 | 2 7 7 10 6 8 8 13 16 Greatest Support 20 | 3 8 8 8 3 8 8 17 20 Greatest Overweight (x) 4 | . . . 1 1 1 . . 4 Average Overweight (x) . | . . . . 1 . . . . Largest Inventory Capacity 4 | 4 4 4 4 4 4 4 4 4 Average Capacity 4 | 4 4 4 4 4 4 4 4 4 Most Carried 4 | 1 4 4 4 4 4 4 3 4 Average Carried 3 | . 2 4 3 4 2 3 2 3 Final Capacity 4 | 4 4 4 4 4 4 4 4 4 Final Carried 4 | 1 4 4 4 4 3 3 2 3 Class Distribution -------------------- 55% | Mutant 24% | Hacker-Mutant 20% | Scavenger-Mutant Dominant Class ---------------- Scavenger-Mutant | -10/Materials Scavenger-Mutant | -10/Mines Mutant | -9/Materials Mutant | -9/Mines Mutant | -9/Exiles Mutant | -8/Mines Scavenger-Mutant | -8/Materials Hacker-Mutant | -7/Factory Resources | -11 -10 -10 -9 -9 -9 -8 -8 -7 ----------- Run | Scr Mat Min Mat Min Exi Min Mat Fac Matter Collected 662 | 206 51 . 180 . . 94 . 131 Remotely . | . . . . . . . . . Salvage Created 987 | . 51 . 390 . . 114 . 432 Parts 43 | . 6 . 18 . . 6 . 13 Haulers Intercepted 2 | . . . . . . . . 2 Recyclers Shooed 1 | . . . . . . . . 1 Parts Field Recycled . | . . . . . . . . . Retrieved Matter . | . . . . . . . . . Parts Self-Destructed . | . . . . . . . . . Prevented . | . . . . . . . . . Kills | -11 -10 -10 -9 -9 -9 -8 -8 -7 ------- Run | Scr Mat Min Mat Min Exi Min Mat Fac Combat Hostiles Destroyed 16 | . 3 . 6 . . 1 . 6 Melee 6 | . . . 3 . . 1 . 2 Guns 6 | . 3 . 3 . . . . . AOE 4 | . . . . . . . . 4 Classes Destroyed 9 | . 1 . 3 . . 1 . 4 Worker 1 | . . . . . . . . 1 Tunneler 1 | . . . . . . . . 1 Hauler 2 | . . . . . . . . 2 Recycler 4 | . . . 1 . . 1 . 2 Swarmer 3 | . 3 . . . . . . . Grunt 6 | . . . 2 . . . . 4 Sentry 5 | . . . 4 . . . . 1 Hunter 1 | . . . . . . 1 . . Programmer 1 | . . . . . . . . 1 Best Kill Streak 5 | . 3 . 3 . . 1 . 5 Combat Bots Only 3 | . 3 . 2 . . 1 . 2 Max Kills in Single Turn 5 | . 1 . 1 . . 1 . 5 Gunslinging . | . . . . . . . . . Exploded 2 | . . . . . . . . 2 Melee 1 | . . . 1 . . 1 . 1 Uniques/NPCs Destroyed . | . . . . . . . . . Combat | -11 -10 -10 -9 -9 -9 -8 -8 -7 -------- Run | Scr Mat Min Mat Min Exi Min Mat Fac Damage Taken 1607 | . 121 12 236 . . . 44 1194 Core 874 | . 29 . 114 . . . 27 704 Absorbed by Shields . | . . . . . . . . . Core Remaining (%) 88 | 100 . 88 . . . 71 95 . Volleys Fired 52 | . 17 . 23 . . . . 12 Largest 2 | . 1 . 2 . . . . 2 Hottest 122 | . 20 . 100 . . . . 122 Shots Fired 59 | . 17 . 27 . . . . 15 Gun 58 | . 17 . 26 . . . . 15 Cannon . | . . . . . . . . . Launcher . | . . . . . . . . . Special 1 | . . . 1 . . . . . Kinetic 39 | . 17 . 22 . . . . . Thermal 16 | . . . 1 . . . . 15 Explosive . | . . . . . . . . . Electromagnetic 4 | . . . 4 . . . . . Robot Hit Streak 6 | . 3 . 6 . . . . 4 Robot Miss Streak 3 | . 1 . 3 . . . . 1 Penetration Max . | . . . . . . . . . Secondary Targets . | . . . . . . . . . Shots Hit Robots 61 | . 6 . 23 1 . 2 . 29 Core Hits 31 | . 3 . 10 . . 2 . 16 Critical Hits 1 | . . . 1 . . . . . Critical Kills . | . . . . . . . . . Critical Parts Destroyed 1 | . . . 1 . . . . . Melee Attacks 59 | . . . 11 1 . 8 11 28 Impact 19 | . . . . . . . 1 18 Slashing 40 | . . . 11 1 . 8 10 10 Piercing . | . . . . . . . . . Sneak Attacks 4 | . . . . 1 . 1 . 2 Combat Hostiles 1 | . . . . . . . . 1 Follow-up Attacks 4 | . . . . . . . . 4 Damage Inflicted 2759 | . 73 . 330 93 . 145 . 2118 Guns 396 | . 73 . 186 . . . . 137 Cannons . | . . . . . . . . . Explosions 1343 | . . . . . . . . 1343 Melee 1020 | . . . 144 93 . 145 . 638 Ramming . | . . . . . . . . . Kinetic 203 | . 73 . 130 . . . . . Thermal 1480 | . . . . . . . . 1480 Explosive . | . . . . . . . . . Electromagnetic 56 | . . . 56 . . . . . Impact 270 | . . . . . . . . 270 Slashing 750 | . . . 144 93 . 145 . 368 Piercing . | . . . . . . . . . Highest Corruption 1 | . . . . . . . . 1 Average Corruption 1 | . . . . . . . . 1 Corruption Purged . | . . . . . . . . . Overload Shots . | . . . . . . . . . Overflow Damage 431 | . . . . 63 . . . 368 Projectiles . | . . . . . . . . . Explosions 368 | . . . . . . . . 368 Melee 63 | . . . . 63 . . . . Knockbacks . | . . . . . . . . . Impact . | . . . . . . . . . Kinetic . | . . . . . . . . . Secondary . | . . . . . . . . . Self-Inflicted Damage 324 | . . . . . . . . 324 Shots 4 | . . . . . . . . 4 Rammed . | . . . . . . . . . Targets Rammed . | . . . . . . . . . Kicked . | . . . . . . . . . Crushed . | . . . . . . . . . Highest Temperature 36 | . 10 . 28 . . . . 36 Average Temperature 9 | . 7 . 9 . . . . 11 Received Heat Transfer 423 | . . . 105 . . . 27 291 Siege Activations . | . . . . . . . . . Robots Corrupted . | . . . . . . . . . Combat Hostiles . | . . . . . . . . . Parts Fried . | . . . . . . . . . Impact Corruptions . | . . . . . . . . . Robots Melted . | . . . . . . . . . Combat Hostiles . | . . . . . . . . . Parts Melted 1 | . . . . . . . . 1 Heat Transferred 1196 | . . . . . . . . 1196 Parts Sabotaged . | . . . . . . . . . Parts Stolen . | . . . . . . . . . Parts Stripped . | . . . . . . . . . Power Chain Reactions . | . . . . . . . . . Missiles Intercepted . | . . . . . . . . . Alert | -11 -10 -10 -9 -9 -9 -8 -8 -7 ------- Run | Scr Mat Min Mat Min Exi Min Mat Fac Peak Influence 313 | . 91 50 261 23 . 55 65 313 Initial 35 | . . 35 19 23 . . 21 29 Average 108 | . 56 49 117 23 . 47 32 178 Maximum Alert Level 1 | . . . 1 . . . . 1 Low Security (%) 72 | 100 100 100 87 100 . 100 100 29 Level 1 27 | . . . 12 . . . . 70 Level 2 . | . . . . . . . . . Level 3 . | . . . . . . . . . Level 4 . | . . . . . . . . . Level 5 . | . . . . . . . . . High Security . | . . . . . . . . . Max Security . | . . . . . . . . . Squads Dispatched 5 | . . . 1 . . . . 4 Investigation 2 | . . . . . . . . 2 Extermination 1 | . . . . . . . . 1 Reinforcement 1 | . . . 1 . . . . . Assault 1 | . . . . . . . . 1 Garrison . | . . . . . . . . . Intercept . | . . . . . . . . . Construction Impeded . | . . . . . . . . . Haulers Reinforced . | . . . . . . . . . Stealth | -11 -10 -10 -9 -9 -9 -8 -8 -7 --------- Run | Scr Mat Min Mat Min Exi Min Mat Fac Distress Signals 4 | . 1 . 2 . . . 1 . Communications Jammed . | . . . . . . . . . Distress Signals . | . . . . . . . . . Times Spotted 48 | . 7 3 19 . . 1 5 13 Peak Tracking Total 8 | . 4 3 8 . . 1 3 7 Tactical Retreats 8 | . 1 . 4 . . . 1 2 Traps | -11 -10 -10 -9 -9 -9 -8 -8 -7 ------- Run | Scr Mat Min Mat Min Exi Min Mat Fac Traps Triggered 1 | . 1 . . . . . . . Indirectly . | . . . . . . . . . Trap Hack Attempts . | . . . . . . . . . Triggered . | . . . . . . . . . Disarmed . | . . . . . . . . . Reprogrammed . | . . . . . . . . . Reused . | . . . . . . . . . Traps Extracted . | . . . . . . . . . Installed . | . . . . . . . . . Triggered . | . . . . . . . . . Machines | -11 -10 -10 -9 -9 -9 -8 -8 -7 ---------- Run | Scr Mat Min Mat Min Exi Min Mat Fac Machines Disabled 9 | . . . . . . . . 9 Max in Single Turn 5 | . . . . . . . . 5 Garrison Access 3 | . . . . . . . 1 2 Machines Sabotaged . | . . . . . . . . . Garrisons Compromised . | . . . . . . . . . Overloaded Fab Kills . | . . . . . . . . . Fab Network Shutdowns . | . . . . . . . . . Hacking | -11 -10 -10 -9 -9 -9 -8 -8 -7 --------- Run | Scr Mat Min Mat Min Exi Min Mat Fac Machines Accessed 12 | . 1 . 5 . . . 2 4 Terminals 6 | . 1 . 4 . . . 1 . Fabricators 1 | . . . . . . . . 1 Repair Stations 1 | . . . . . . . . 1 Recycling Units . | . . . . . . . . . Scanalyzers 1 | . . . 1 . . . . . Garrison Access 3 | . . . . . . . 1 2 Total Hacks 32 | . 3 . 14 . . . 7 8 Successful 17 | . 1 . 11 . . . 2 3 Failed 15 | . 2 . 3 . . . 5 5 Catastrophic 6 | . 1 . . . . . 3 2 Database Lockouts . | . . . . . . . . . Manual 22 | . 3 . 11 . 1 . 6 1 Terminals 19 | . 3 . 10 . . . 6 . Fabricators 3 | . . . . . . . . 3 Repair Stations 2 | . . . . . . . . 2 Recycling Units . | . . . . . . . . . Scanalyzers 4 | . . . 4 . . . . . Garrison Access 4 | . . . . . . . 1 3 Terminal Hacks 3 | . 1 . 2 . . . . . Robot Analysis 3 | . 1 . 2 . . . . . Fabricator Hacks . | . . . . . . . . . Repair Station Hacks 2 | . . . . . . . . 2 Scan Component 1 | . . . . . . . . 1 Repair 1 | . . . . . . . . 1 Recycling Unit Hacks . | . . . . . . . . . Scanalyzer 4 | . . . 4 . . . . . Insert Component 2 | . . . 2 . . . . . Analyze 2 | . . . 2 . . . . . Garrison Access Hacks 2 | . . . . . . . 1 1 Seal Access 2 | . . . . . . . 1 1 Unauthorized Hacks 6 | . . . 5 . . . 1 . Terminals 6 | . . . 5 . . . 1 . Assimilate 2 | . . . 2 . . . . . Botnet 3 | . . . 2 . . . 1 . Operators 1 | . . . 1 . . . . . Fabricators . | . . . . . . . . . Repair Stations . | . . . . . . . . . Recycling Units . | . . . . . . . . . Scanalyzers . | . . . . . . . . . Garrison Access . | . . . . . . . . . Data Cores Recovered . | . . . . . . . . . Used . | . . . . . . . . . Hacking Detections 9 | . 1 . 5 . . . 1 2 Full Trace Events 4 | . 1 . . . . . 1 2 Feedback Events 1 | . . . . . . . . 1 Hackware Fried 1 | . . . . . . . . 1 Feedback Blocked . | . . . . . . . . . Robot Schematics Acquired . | . . . . . . . . . Robots Built . | . . . . . . . . . Matter . | . . . . . . . . . Time . | . . . . . . . . . Total Robot Build Rating . | . . . . . . . . . Part Schematics Acquired 2 | . . . 2 . . . . . Parts Built . | . . . . . . . . . Matter . | . . . . . . . . . Time . | . . . . . . . . . Total Part Build Rating . | . . . . . . . . . Parts Repaired 1 | . . . . . . . . 1 Time 19 | . . . . . . . . 19 Parts Recycled . | . . . . . . . . . Recycled Matter . | . . . . . . . . . Retrieved Matter . | . . . . . . . . . Retrieved Components . | . . . . . . . . . Parts Scanalyzed 2 | . . . 2 . . . . . Part Schematics Acquired 2 | . . . 2 . . . . . Parts Damaged . | . . . . . . . . . Bothacking | -11 -10 -10 -9 -9 -9 -8 -8 -7 ------------ Run | Scr Mat Min Mat Min Exi Min Mat Fac Used RIF Installer . | . . . . . . . . . Robots Hacked . | . . . . . . . . . Non-combat . | . . . . . . . . . Combat . | . . . . . . . . . Robot Hacks Applied . | . . . . . . . . . Relay Couplers Released 2 | . . . . . . . . 2 Machine Destruction 2 | . . . . . . . . 2 Robots Rewired . | . . . . . . . . . Allies Hacked . | . . . . . . . . . Hacks Repelled . | . . . . . . . . . Allies | -11 -10 -10 -9 -9 -9 -8 -8 -7 -------- Run | Scr Mat Min Mat Min Exi Min Mat Fac Total Allies 2 | . . . 2 . . . . . Largest Group 1 | . . . 1 1 1 1 . . Highest-Rated Group 10 | . . . 10 10 10 10 . . Highest-Rated Ally 10 | . . . 10 10 10 10 . . Total Orders . | . . . . . . . . . Ally Attacks . | . . . . . . . . . Total Damage . | . . . . . . . . . Kills . | . . . . . . . . . Allies Corrupted . | . . . . . . . . . Allies Melted . | . . . . . . . . . Intel | -11 -10 -10 -9 -9 -9 -8 -8 -7 ------- Run | Scr Mat Min Mat Min Exi Min Mat Fac Robot Analysis Total 3 | . 1 . 2 . . . . . Derelict Logs Recovered 1 | . . 1 . . . . . . Drone Launches . | . . . . . . . . . Drone Recoveries . | . . . . . . . . . Exploration | -11 -10 -10 -9 -9 -9 -8 -8 -7 ------------- Run | Scr Mat Min Mat Min Exi Min Mat Fac Turns Passed 1980 | 19 145 15 403 91 535 175 117 480 Spaces Moved 1738 | 33 220 40 409 77 223 201 166 369 Core 392 | 33 53 . 44 77 25 . . 160 Treads . | . . . . . . . . . Legs . | . . . . . . . . . Wheels . | . . . . . . . . . Hover . | . . . . . . . . . Flight 1346 | . 167 40 365 . 198 201 166 209 Fastest Speed 37 | 50 37 37 37 100 37 37 37 37 Average Speed 53 | 50 40 37 43 100 46 37 37 84 Slowest Speed 280 | 50 50 37 117 100 120 37 37 280 Overloaded Moves . | . . . . . . . . . Propulsion Burnouts . | . . . . . . . . . Robots Hopped 9 | . 2 3 . . . . 4 . Cave-ins Triggered . | . . . . . . . . . Exploration Rate (%) 29 | 4 30 17 43 22 63 52 20 15 Regions Visited 8 Branch Regions 4 Pre-discovered Areas . | . . . . . . . . . Known Exits Taken . | . . . . . . . . . Unknown Exits Taken 8 | 1 1 1 1 1 1 1 1 . Scrap Searched 2 | . . . . . . 2 . . Spaces Dug 22 | . . . 5 . . 5 10 2 Terrain Destroyed 87 | . . . 5 . . 5 10 67 Melee 21 | . . . 4 . . 5 10 2 Projectile 1 | . . . 1 . . . . . AOE 65 | . . . . . . . . 65 Terrain Rammed . | . . . . . . . . . Walls Destroyed . | . . . . . . . . . Machines Disabled . | . . . . . . . . . Actions | -11 -10 -10 -9 -9 -9 -8 -8 -7 --------- Run | Scr Mat Min Mat Min Exi Min Mat Fac Total 2625 | 34 255 36 592 89 655 287 199 478 Wait 714 | . 10 . 126 12 419 75 21 51 Move 1713 | 32 215 33 408 76 222 200 158 369 Hop 8 | . 2 3 . . . . 3 . Pick Up 8 | 1 2 . 2 . . . 1 2 Fast Attach 30 | 1 7 . 8 . 4 3 2 5 Attach 13 | . . . 2 . 4 1 2 4 Detach 11 | . . . 4 . 3 1 . 3 Swap 3 | . 1 . . . . . . 2 Drop 21 | . 1 . 9 . 3 . 2 6 Fire 52 | . 17 . 23 . . . . 12 Melee 52 | . . . 10 1 . 7 10 24 Ram . | . . . . . . . . . Kick . | . . . . . . . . . Crush . | . . . . . . . . . Escape Stasis . | . . . . . . . . . Rewire . | . . . . . . . . . Trap . | . . . . . . . . . Miscellaneous . | . . . . . . . . . Route ------- -11/Scrapyard -10/Materials -10/Mines -9/Materials (discovered 2 exits: *Mat / [*Min]) -9/Mines -9/Exiles -8/Mines -8/Materials -7/Factory (discovered 1 exit: [*Low]) History --------- Turn | Location | Event 2 | -11/Scrapyard | Discovered new exit (range 16) 20 | -11/Scrapyard | Entered Materials 77 | -10/Materials | Discovered new exit (range 16) 165 | -10/Materials | Entered Mines 168 | -10/Mines | Learned 2 Materials zone layouts 175 | -10/Mines | Discovered new exit (range 3) 180 | -10/Mines | Entered Materials 180 | -9/Materials | Evolved 2 slots: Utility x2 494 | -9/Materials | Discovered new exit (range 10) 574 | -9/Materials | Discovered new exit (range 7) 583 | -9/Materials | Entered Mines 583 | -9/Mines | Accompanied by 1 ally 600 | -9/Mines | Met a Derelict bent on vengeance 659 | -9/Mines | Deemed a non-threat by the Exiles lab entrance 659 | -9/Mines | Discovered new exit (range 5) 674 | -9/Mines | Entered Exiles 674 | -9/Exiles | Accompanied by 1 ally 690 | -9/Exiles | Build established: Mutant 699 | -9/Exiles | Met 8R-AWN 708 | -9/Exiles | Met EX-HEX 719 | -9/Exiles | Met EX-BIN 724 | -9/Exiles | Aligned with FarCom system 724 | -9/Exiles | Given EX-Vault access code 763 | -9/Exiles | Opened EX-Vault 770 | -9/Exiles | Found Prototype Storage 770 | -9/Exiles | Identified Superbattery 773 | -9/Exiles | Found Prototype Ballistic Gun 773 | -9/Exiles | Identified AWS/Gauss 1152 | -9/Exiles | Warned to stay clear of 0b10 Research branches 1162 | -9/Exiles | Met EX-DEC 1177 | -9/Exiles | Discovered new exit (range 10) 1209 | -9/Exiles | Left Exiles lab with Superbattery 1209 | -9/Exiles | Entered Mines 1209 | -8/Mines | Accompanied by 1 ally 1361 | -8/Mines | Discovered new exit (range 10) 1384 | -8/Mines | Entered Materials 1384 | -8/Materials | Evolved 2 slots: Utility x2 1496 | -8/Materials | Discovered new exit (range 14) 1501 | -8/Materials | Entered Factory 1501 | -7/Factory | Evolved 2 slots: Utility x2 1526 | -7/Factory | Repaired Axe 1595 | -7/Factory | Discovered new exit (range 10) 1656 | -7/Factory | Lost 5 parts (1p2n2u) 1754 | -7/Factory | Build established: Hacker-Mutant 1935 | -7/Factory | Hacking Suite fried by hacking feedback 1956 | -7/Factory | Core integrity fell below 50% 1981 | -7/Factory | Core integrity fell below 20% 1981 | -7/Factory | Destroyed by H-55 Commando with Gauss Rifle Last Messages --------------- 01958_ K-01 Serf collects debris. 01967_ M-28 Smith fits Backup Propulsion III on K-01 Serf. 01980_ Power Conduit explodes. 01980_ Destroyed Shock Rifle. 01980_ Destroyed Remote Datajack. 01980_ Imp. Targeting Computer destroyed. 01980_ Destroyed Imp. Targeting Computer. 01980_ Axe destroyed. 01980_ Destroyed Axe. 01980_ System Shield destroyed. 01980_ Destroyed System Shield. 01980_ Power Conduit explodes. 01980_ Destroyed Lgt. Angular Momentum Engine. 01980_ Destroyed Gravmag System. 01980_ Power Conduit explodes. 01980_ G-47 Trooper destroyed. 01980_ Power Conduit explodes. 01980_ P-60 Hacker destroyed. 01980_ Power Conduit explodes. 01981_ Penetrated by Slug. Map ----- +----------------------------------------------------+ | # #??????????????????? | | ##########??????????????????? | | /]/ ???????????????????? | | / " ########????????????????????? | | ?? /]= "" #???????????????????????????? | | ?????+## % " #???????????????????????????? | | ????? " #???????????????????????????? | | ?????? "" #???????????????????????????? | | ?????? % " #???????????????????????????? | | ??????? " %! ##??????????????????????????? | | ??????? " = * +?????????????????????????? | | ????????" """#######?????????????????????????? | | ????????" " ?????????????????????????????????? | | ????????# #??????????????????????????????????? | | ????????# #??????????????????????????????????? | | ????????# #??????????????????????????????????? | | ????????# #??????##############??????????????? | | ????????# #??????# r #??????????????? | | ????????# #??????# #??????????????? | | ????????# #??????# #??????????????? | | ????????# ######## #??????????????? | | ????????# h ; ###????????????? | | ????????# ; #????????????? | | ????????# % ; # ????????? | | ?""" #### ; ????????? | | ?""" / @ ;#????????????? | | ?""" ######+####### ????????? | | ?????# # ????????? | | ?????# """ + ?????????? | | ?????# """ ##;; T"?????????? | | ?????# """ !!!# ??????????? | | ?????# ! !!!# """"### ## ??????????? | | ?????# """ Y! # """"#??######?? !??????????? | | ?????# """ #* """"#???????????????????????? | | ?????# """ # """"#???????????????????????? | | ?????# #] ?????????????????????????? | | ?????# " "" #####??????????????????????????? | | ?????# "R"" #??????????????????????????????? | | ?????# """" #??????????????????????????????? | | ?????########## ###??????????????????????????????? | | ??????????????###????????????????????????????????? | | ?????????????????????????????????????????????????? | | ?????????????????????????????????????????????????? | | ?????????????????????????????????????????????????? | | ?????????????????????????????????????????????????? | | ?????????????????????????????????????????????????? | | ?????????????????????????????????????????????????? | | ?????????????????????????????????????????????????? | | ?????????????????????????????????????????????????? | | ?????????????????????????????????????????????????? | +----------------------------------------------------+ Best States ------------- Heat Dissipation 34 Energy Generation 10 Energy Capacity 2250 Matter Stores 300 Matter Capacity 300 Sight Range 16 Terrain Scan Density 10 ECM Strength 1 Additional Mass Support 9 Armor Coverage 150 Evasion (%) 62 Targeting Accuracy 17 Offensive Hacking 10 Defensive Hacking 10 Item Schematics ----------------- Hacking Suite | -9/Materials | Scanalyzed Flight Unit | -9/Materials | Scanalyzed Robot Schematics ------------------ None Fabricated ------------ Nothing Alien Tech Used ----------------- None Achievements -------------- None Challenges ------------ None Game ------ Seed MetafieldUtilityField Manual? 0 Play Time 00:24:25 Cumulative 94.0 hours Start 2020.10.04 @ 01:49:13 End 2020.10.04 @ 02:13:01 Sessions 1 Manual Loads 0 Difficulty Rogue Special Mode None Game No. 137 Rogue 113 Adventurer 22 Explorer 2 Win Type - Total 1 Types 1/0/0/0/0/0/0/0/0 Lore% 46 Gallery% 51 Achievement% 42 Wizard Run 0 Options --------- ASCII 0 Keyboard 0 Movement Numpad Keybinds 0 Fullscreen 1 Font 14/SmallcapsGlow Map View 84x54 Tactical HUD 1 Map Filters NONE Filters NONE Steam 1 RUN: 0efcf6d0-f0a2-49f1-8dfd-6647ac741953